bitfinex/quotes_SOLUSD_20250721
["timestamp","ask_amount","ask_price","bid_price","bid_amount"]
[1753106769883,45.0876062,192.7,192.65,0.03]
[1753106770192,45.0876062,192.7,192.69,26.0]
[1753106770193,55.08468397,192.7,192.69,26.0]
[1753106770699,54.42468397,192.7,192.69,26.0]
[1753106771399,55.08468397,192.7,192.69,26.0]
[1753106773689,54.42468397,192.7,192.69,26.0]
[1753106775077,55.08468397,192.7,192.69,26.0]
[1753106775270,55.08468397,192.7,192.68,26.0]
[1753106775271,16.78468397,192.69,192.68,26.0]
[1753106776475,16.78468397,192.69,192.68,31.18995225]
[1753106776870,37.64,192.7,192.68,37.97755845]
[1753106777100,37.64,192.7,192.68,31.18995225]
[1753106777474,17.44468397,192.69,192.68,26.0]
[1753106777877,89.8,192.71,192.7,26.0]
[1753106778078,89.8,192.71,192.7,32.7876062]
[1753106779001,89.8,192.71,192.7,5.18941359]
[1753106779214,89.8,192.71,192.7,26.0]
[1753106779415,37.62,192.72,192.7,26.0]
[1753106780280,1e-08,192.73,192.71,6.7876062]
[1753106780484,37.62,192.72,192.71,7.4476062]
[1753106780812,37.62000001,192.73,192.71,7.4476062]
[1753106780986,37.62000001,192.73,192.72,6.7876062]
[1753106781181,37.62000001,192.73,192.72,11.97648125]
[1753106781405,37.62000001,192.73,192.72,5.18887505]
[1753106782202,16.78468397,192.72,192.7,26.0]
[1753106782501,54.40468397,192.71,192.7,26.0]
[1753106783111,54.40468397,192.71,192.69,5.18968291]
[1753106786589,55.06468397,192.71,192.69,5.18968291]
[1753106787696,55.06468397,192.71,192.68,6.8176062]
[1753106787697,55.06468397,192.71,192.68,0.03]
[1753106787896,55.06468397,192.71,192.7,26.0]
[1753106788292,16.78468397,192.7,192.68,0.03]
[1753106788500,37.6,192.69,192.68,0.03]
[1753106789018,37.6,192.69,192.68,26.03]
[1753106790101,55.04468397,192.69,192.68,26.03]
[1753106790613,54.38468397,192.69,192.68,31.21995225]
[1753106791206,54.38468397,192.69,192.68,26.03]
[1753106791615,55.07468397,192.69,192.68,26.03]
[1753106792699,54.38468397,192.69,192.68,26.03]
[1753106793201,54.38468397,192.69,192.68,31.21995225]
[1753106793598,54.38468397,192.69,192.68,26.03]
[1753106793915,37.6,192.69,192.68,26.03]
[1753106795033,83.20428323,192.72,192.68,38.72755845]
[1753106795325,37.58,192.71,192.69,7.5076062]
[1753106795496,120.78428323,192.72,192.71,26.0]
[1753106796003,121.47428323,192.72,192.71,26.0]
[1753106797016,128.26188943,192.72,192.69,26.0]
[1753106797199,0.69,192.71,192.69,26.0]
[1753106797399,37.58,192.7,192.69,26.0]
[1753106797596,45.0576062,192.7,192.69,26.0]
[1753106797905,45.0576062,192.7,192.68,26.03]
[1753106798100,44.3676062,192.7,192.68,26.03]
[1753106798295,0.69,192.69,192.68,26.03]
[1753106799818,54.36468397,192.7,192.69,26.0]
[1753106800129,61.15229017,192.7,192.69,26.0]
[1753106800316,55.05468397,192.7,192.69,26.0]
[1753106800703,37.58,192.7,192.68,6.8176062]
[1753106800899,37.58,192.7,192.68,7.5376062]
[1753106801106,37.58,192.7,192.69,7.5076062]
[1753106801314,37.58,192.7,192.69,6.7876062]
[1753106801515,37.58,192.7,192.68,12.00753688]
[1753106801723,37.58,192.7,192.68,6.8176062]
[1753106801908,37.58,192.7,192.69,26.0]
[1753106804596,0.69,192.72,192.69,26.0]
[1753106804919,37.58,192.71,192.7,26.0]
[1753106805113,38.27,192.71,192.7,26.0]
[1753106805811,23.63229017,192.73,192.7,12.69699211]
[1753106805812,0.06,192.73,192.7,12.69699211]
[1753106806016,0.06,192.73,192.72,26.0]
[1753106807409,0.06,192.73,192.72,26.72]
[1753106807619,0.06,192.73,192.72,38.69648125]
[1753106807802,0.06,192.73,192.72,31.90887505]
[1753106808323,0.06,192.73,192.72,38.69648125]
[1753106809715,0.06,192.73,192.69,26.72]
[1753106809923,0.06,192.73,192.71,6.7876062]
[1753106810231,0.06,192.73,192.72,32.7876062]
[1753106810613,0.06,192.73,192.72,26.0]
[1753106810803,0.75,192.73,192.71,26.0]
[1753106810999,37.56,192.72,192.7,6.7876062]
[1753106811330,37.56,192.72,192.71,6.7876062]
[1753106812227,37.56,192.72,192.7,5.18934705]
[1753106812529,37.56,192.72,192.7,11.97695325]
[1753106813598,37.56,192.72,192.7,5.18934705]
[1753106813803,37.56,192.72,192.71,7.5076062]
[1753106814430,37.56,192.72,192.7,6.7876062]
[1753106815732,37.56,192.72,192.71,6.7876062]
[1753106815916,38.25,192.72,192.68,0.03]
[1753106816116,37.56,192.72,192.71,26.0]
[1753106816710,38.25,192.72,192.71,26.0]
[1753106817428,38.25,192.72,192.68,0.03]
[1753106817598,37.56,192.72,192.71,26.0]
[1753106818237,38.25,192.72,192.71,26.0]
[1753106819826,38.25,192.72,192.68,6.8176062]
[1753106819827,16.78468397,192.71,192.68,0.03]
[1753106820003,37.54,192.7,192.68,0.03]
[1753106820203,55.01468397,192.7,192.69,26.0]
[1753106820421,54.32468397,192.7,192.69,26.0]
[1753106820723,55.01468397,192.7,192.69,26.0]
[1753106821633,60.20409756,192.7,192.69,26.0]
[1753106821816,83.20428323,192.69,192.68,0.03]
[1753106822007,24.26229017,192.69,192.68,0.03]
[1753106822331,32.10349017,192.69,192.68,0.03]
[1753106823517,25.31588397,192.69,192.68,0.03]
[1753106823918,70.12349017,192.69,192.68,0.03]
[1753106824121,69.62349017,192.69,192.68,0.03]
[1753106824548,74.81317308,192.69,192.68,0.03]
[1753106828424,69.62349017,192.69,192.68,0.03]
[1753106828627,63.28749017,192.69,192.68,0.03]
[1753106828827,16.78468397,192.69,192.68,0.03]
[1753106829020,54.30468397,192.69,192.68,0.03]
[1753106830331,37.52,192.69,192.68,26.03]
[1753106830736,37.52,192.7,192.69,26.0]
[1753106831126,37.52,192.7,192.69,26.67]
[1753106831831,96.5876062,192.72,192.7,26.0]
[1753106832029,37.52,192.71,192.7,26.0]
[1753106833770,37.52,192.71,192.68,0.03]
[1753106833771,37.52,192.71,192.69,26.0]
[1753106834331,43.39926965,192.71,192.69,26.0]
[1753106834531,16.78468397,192.7,192.68,0.03]
[1753106834935,37.52,192.69,192.68,0.03]
[1753106835126,61.78229017,192.69,192.68,0.03]
[1753106835737,54.97468397,192.69,192.68,0.03]
[1753106835951,66.95197308,192.69,192.68,0.03]
[1753106836942,16.78468397,192.68,192.66,0.03]
[1753106837254,134.0876062,192.67,192.66,0.03]
[1753106837543,44.9776062,192.67,192.66,0.03]
[1753106838350,50.16782782,192.67,192.66,0.03]
[1753106842255,60.16490559,192.67,192.66,0.03]
[1753106842446,66.95251179,192.67,192.66,0.03]
[1753106843056,29.45251179,192.67,192.66,0.03]
[1753106843239,6.7876062,192.71,192.67,26.0]
[1753106843446,12.03626825,192.73,192.68,7.4576062]
[1753106843635,37.5,192.72,192.69,0.67]
[1753106843827,44.2876062,192.72,192.7,0.67]
[1753106844032,44.2876062,192.72,192.68,0.67]
[1753106844231,44.2876062,192.72,192.69,0.67]
[1753106844443,37.5,192.72,192.69,0.67]
[1753106844740,37.5,192.72,192.68,6.7876062]
[1753106844945,37.5,192.72,192.7,0.67]
[1753106847433,37.56,192.73,192.72,26.0]
[1753106848247,37.56,192.73,192.72,26.67]
[1753106848646,37.56,192.73,192.72,24.03465705]
[1753106849251,0.06,192.73,192.72,24.70465705]
[1753106849834,0.06,192.73,192.72,24.03465705]
[1753106850359,0.06,192.73,192.72,24.70465705]
[1753106850650,0.06,192.73,192.72,36.6811383]
[1753106850827,0.06,192.73,192.72,0.67]
[1753106852746,0.06,192.73,192.7,11.97700866]
[1753106852954,0.06,192.73,192.7,26.65]
[1753106853259,0.78,192.73,192.69,6.7876062]
[1753106853476,6.7876062,192.7,192.66,0.03]
[1753106853675,38.18,192.7,192.66,0.03]
[1753106853960,6.7876062,192.69,192.66,0.68]
[1753106854359,6.7876062,192.69,192.66,26.03]
[1753106854950,6.7876062,192.69,192.67,26.0]
[1753106855261,37.46,192.7,192.68,26.0]
[1753106855449,44.2476062,192.7,192.68,26.0]
[1753106855966,37.46,192.7,192.68,0.65]
[1753106856144,37.46,192.7,192.69,26.0]
[1753106856349,44.2476062,192.72,192.7,26.0]
[1753106856556,24.29229017,192.71,192.69,26.0]
[1753106856754,6.7876062,192.7,192.68,26.0]
[1753106857065,44.9676062,192.7,192.68,26.0]
[1753106857455,44.2476062,192.7,192.68,26.0]
[1753106857652,37.46,192.7,192.68,26.0]
[1753106859558,37.46,192.7,192.69,26.0]
[1753106860158,37.46,192.7,192.68,26.0]
[1753106860159,42.64941718,192.7,192.68,26.0]
[1753106860471,44.2476062,192.7,192.68,26.0]
[1753106861463,7.5076062,192.69,192.67,26.0]
[1753106861675,6.7876062,192.68,192.67,26.0]
[1753106862362,97.3076062,192.69,192.67,26.0]
[1753106862562,37.46,192.68,192.67,26.0]
[1753106864173,37.46,192.68,192.66,0.03]
[1753106864174,37.46,192.68,192.66,26.03]
[1753106864646,37.46,192.68,192.67,26.0]
[1753106865748,16.78468397,192.67,192.66,0.03]
[1753106867069,37.46,192.68,192.66,26.03]
[1753106867669,44.2476062,192.68,192.66,26.03]
[1753106868376,42.64996508,192.68,192.66,26.03]
[1753106868672,37.46,192.68,192.66,26.03]
[1753106870462,42.65001428,192.68,192.66,26.03]
[1753106870979,37.46,192.68,192.66,26.03]
[1753106871175,37.46,192.68,192.66,0.03]
[1753106871675,37.46,192.68,192.66,26.03]
[1753106871869,42.64996183,192.68,192.66,26.03]
[1753106873570,37.46,192.68,192.66,26.03]
[1753106874259,42.6499804,192.68,192.66,26.03]
[1753106874462,50.1575866,192.68,192.66,26.03]
[1753106875474,44.2476062,192.68,192.66,26.03]
[1753106875683,37.46,192.68,192.66,26.03]
[1753106876680,44.2476062,192.68,192.66,26.03]
[1753106877559,49.4375849,192.68,192.66,26.03]
[1753106878984,44.2476062,192.68,192.66,26.03]
[1753106879187,54.24468397,192.68,192.67,26.0]
[1753106880059,97.3076062,192.69,192.67,26.0]
[1753106880366,37.44,192.68,192.66,12.008079]
[1753106880565,89.8,192.69,192.68,26.0]
[1753106880766,89.8,192.69,192.68,37.97755845]
[1753106880977,89.8,192.69,192.68,38.62755845]
[1753106881366,0.06,192.73,192.68,38.62755845]
[1753106881569,0.06,192.73,192.72,6.7876062]
[1753106881958,0.06,192.73,192.72,7.4776062]
[1753106882165,0.06,192.73,192.72,26.0]
[1753106882368,66.91089599,192.73,192.72,26.0]
[1753106882571,61.72229017,192.73,192.72,26.0]
[1753106882774,61.72229017,192.73,192.7,26.0]
[1753106883190,66.91089599,192.73,192.7,26.0]
[1753106883367,61.72229017,192.73,192.7,26.0]
[1753106883775,66.91089934,192.73,192.7,26.0]
[1753106884084,7.4576062,192.72,192.7,26.0]
[1753106884294,37.42,192.71,192.7,26.0]
[1753106886662,37.42,192.71,192.68,0.69]
[1753106887483,37.42,192.71,192.7,26.0]
[1753106887974,37.42,192.71,192.69,26.0]
[1753106888178,38.09,192.71,192.69,26.0]
[1753106889098,38.09,192.71,192.67,12.66780644]
[1753106889099,37.42,192.71,192.7,26.0]
[1753106889467,66.85143448,192.71,192.68,26.0]
[1753106889689,0.67,192.7,192.68,26.0]
[1753106889873,37.42,192.69,192.66,5.22045506]
[1753106890072,37.42,192.69,192.68,26.0]
[1753106890579,37.42,192.69,192.68,0.69]
[1753106891303,37.42,192.69,192.68,26.0]
[1753106891491,16.78468397,192.7,192.69,26.0]
[1753106891787,54.18468397,192.7,192.69,26.0]
[1753106892995,54.85468397,192.7,192.69,26.0]
[1753106893296,54.18468397,192.7,192.69,26.0]
[1753106893487,54.18468397,192.7,192.69,0.69]
[1753106893682,37.4,192.7,192.69,0.69]
[1753106893989,54.18468397,192.71,192.69,0.69]
[1753106894186,54.18468397,192.71,192.7,0.69]
[1753106894391,54.18468397,192.71,192.68,6.7876062]
[1753106894692,16.78468397,192.71,192.69,7.4776062]
[1753106894986,16.78468397,192.71,192.7,0.69]
[1753106895595,0.06,192.72,192.7,14.2652124]
[1753106895892,0.06,192.72,192.71,7.4776062]
[1753106896076,0.06,192.72,192.71,0.69]
[1753106896278,0.06,192.72,192.71,50.06675051]
[1753106898991,0.06,192.72,192.71,12.66675051]
[1753106899200,0.06,192.72,192.71,43.27914431]
[1753106899376,0.06,192.72,192.71,50.06675051]
[1753106902476,0.00576,192.72,192.71,50.06675051]
[1753106904080,0.00576,192.72,192.71,12.66675051]
[1753106904602,0.00576,192.72,192.71,50.04675051]
[1753106908403,0.06,192.76,192.74,26.0]
[1753106908602,0.06,192.76,192.75,70.1676062]
[1753106908782,0.06,192.76,192.75,75.35567364]
[1753106908981,0.06,192.76,192.75,76.04567364]
[1753106909181,0.06,192.76,192.75,31.87806744]
[1753106909501,0.06,192.76,192.75,37.97567364]
[1753106909978,0.06,192.76,192.75,32.7876062]
[1753106911310,0.06,192.76,192.75,76.02567364]
[1753106911488,0.06,192.76,192.75,32.7876062]
[1753106912287,0.06,192.76,192.75,38.66567364]
[1753106912499,0.06,192.76,192.75,33.4776062]
[1753106913693,0.06,192.76,192.75,26.69]
[1753106913899,0.06,192.76,192.75,33.4776062]
[1753106914205,0.06,192.76,192.75,38.66567364]
[1753106915608,0.06,192.79,192.75,38.66567364]
[1753106915807,0.06,192.79,192.76,44.1476062]
[1753106916112,0.06,192.79,192.76,44.8376062]
[1753106916504,0.06,192.79,192.76,12.66540449]
[1753106916894,0.72,192.79,192.76,26.0]
[1753106917397,0.72,192.79,192.76,32.7876062]
[1753106918400,0.72,192.77,192.76,26.0]
[1753106918616,0.72,192.77,192.75,6.7876062]
[1753106919093,0.72,192.77,192.75,26.0]
[1753106919806,0.66,192.76,192.73,6.7876062]
[1753106920008,16.84468397,192.77,192.73,6.7876062]
[1753106920224,0.66,192.75,192.73,6.7876062]
[1753106920394,0.66,192.75,192.73,32.7876062]
[1753106920594,0.66,192.75,192.73,6.7876062]
[1753106920802,0.66,192.74,192.71,0.03]
[1753106921014,16.78468397,192.73,192.71,0.03]
[1753106921189,25.21249017,192.73,192.71,0.03]
[1753106921391,0.66,192.72,192.71,0.03]
[1753106921712,0.66,192.72,192.71,26.03]
[1753106922212,18.42488397,192.73,192.71,0.03]
[1753106922390,19.08488397,192.73,192.72,26.0]
[1753106923004,19.08488397,192.73,192.71,26.03]
[1753106923318,0.66,192.72,192.71,26.03]
[1753106924716,16.78468397,192.73,192.71,26.03]
[1753106925322,0.66,192.72,192.71,26.03]
[1753106925702,17.44468397,192.72,192.71,26.03]
[1753106926017,24.23229017,192.72,192.71,26.03]
[1753106926409,17.44468397,192.72,192.71,26.03]
[1753106927296,22.63355902,192.72,192.71,26.03]
[1753106928403,29.42116522,192.72,192.71,0.03]
[1753106929200,22.63355902,192.72,192.71,0.03]
[1753106929402,29.42116522,192.72,192.71,0.03]
[1753106929614,31.05336522,192.72,192.71,0.03]
[1753106929817,31.55336522,192.72,192.71,0.03]
[1753106930911,16.78468397,192.71,192.68,1.42308702]
[1753106931128,23.57229017,192.69,192.68,0.44308702]
[1753106931357,60.91229017,192.69,192.68,0.44308702]
[1753106931617,61.48229017,192.69,192.68,0.44308702]
[1753106932724,66.67197308,192.69,192.68,0.44308702]
[1753106933730,18.42118397,192.68,192.67,0.03]
[1753106933911,25.20879017,192.68,192.67,0.03]
[1753106934108,25.20879017,192.68,192.66,0.03]
[1753106934109,23.17068397,192.67,192.66,0.03]
[1753106934304,29.95829017,192.67,192.66,0.03]
[1753106934512,16.78468397,192.66,192.65,0.03]
[1753106934727,66.67278119,192.66,192.65,0.03]
[1753106938207,66.67278119,192.66,192.61,0.03]
[1753106938425,113.94229017,192.65,192.61,0.03]
[1753106939031,119.13305061,192.65,192.61,0.03]
[1753106939424,112.34544441,192.65,192.61,0.03]
[1753106939628,119.13305061,192.65,192.61,0.03]
[1753106940342,16.78468397,192.64,192.61,0.03]
[1753106940640,113.31229017,192.62,192.61,0.03]
[1753106940823,152.24149017,192.62,192.61,0.03]
[1753106941031,68.26305906,192.62,192.61,0.03]
[1753106941216,74.44155906,192.62,192.61,0.03]
[1753106941420,81.22916526,192.62,192.61,0.03]
[1753106941727,67.65395286,192.62,192.61,0.03]
[1753106941924,74.44155906,192.62,192.61,0.03]
[1753106942437,256.38468397,192.61,192.57,0.03]
[1753106942736,16.78468397,192.56,192.54,0.03]
[1753106943043,16.78468397,192.52,192.51,0.2]
[1753106943217,23.57229017,192.52,192.51,0.2]
[1753106943421,61.25229017,192.52,192.51,0.2]
[1753106944038,23.57229017,192.52,192.51,0.2]
[1753106944242,61.25229017,192.52,192.51,0.2]
[1753106945131,66.4465557,192.52,192.51,0.2]
[1753106945340,66.1065557,192.52,192.51,0.2]
[1753106945729,66.4465557,192.52,192.51,0.2]
[1753106946235,66.1065557,192.52,192.51,0.2]
[1753106946731,66.4465557,192.52,192.51,0.2]
[1753106947138,29.1065557,192.52,192.51,0.2]
[1753106947343,66.4465557,192.52,192.51,0.2]
[1753106948131,66.1065557,192.52,192.51,0.2]
[1753106948837,28.7665557,192.52,192.51,0.2]
[1753106949038,66.1265557,192.52,192.51,0.2]
[1753106949438,16.78468397,192.52,192.51,0.2]
[1753106949740,54.14468397,192.52,192.51,0.86]
[1753106949941,89.8,192.55,192.51,6.05453534]
[1753106950143,37.34,192.54,192.53,26.0]
[1753106950350,54.12468397,192.54,192.53,26.0]
[1753106950568,6.7876062,192.59,192.53,6.7876062]
[1753106950856,16.78468397,192.57,192.54,33.4476062]
[1753106951033,23.57229017,192.55,192.54,26.0]
[1753106951236,60.91229017,192.55,192.54,26.66]
[1753106951427,60.91229017,192.55,192.54,0.66]
[1753106951756,54.12468397,192.55,192.54,0.66]
[1753106952824,60.91229017,192.55,192.53,26.0]
[1753106953029,60.91229017,192.55,192.53,26.66]
[1753106953333,16.78468397,192.53,192.51,0.86]
[1753106953554,44.1276062,192.52,192.51,0.2]
[1753106954234,60.91229017,192.52,192.51,0.2]
[1753106954555,61.25229017,192.52,192.51,0.2]
[1753106955335,66.4465557,192.52,192.51,0.2]
[1753106955946,66.1065557,192.52,192.51,0.2]
[1753106956845,28.7665557,192.52,192.51,0.2]
[1753106957050,106.58468397,192.52,192.51,0.86]
[1753106957251,143.92468397,192.52,192.51,0.86]
[1753106957758,150.71229017,192.52,192.51,0.86]
[1753106957949,155.9065557,192.52,192.51,0.2]
[1753106962055,155.9065557,192.52,192.51,0.86]
[1753106962652,66.1065557,192.52,192.51,0.86]
[1753106963452,54.12468397,192.52,192.51,0.86]
[1753106963653,60.91229017,192.52,192.51,0.86]
[1753106963849,54.12468397,192.52,192.51,26.86]
[1753106964867,37.34,192.52,192.51,32.05453534]
[1753106965060,37.34,192.53,192.51,38.84214154]
[1753106965242,37.34,192.54,192.52,6.7876062]
[1753106965449,54.12468397,192.54,192.53,0.66]
[1753106967170,6.7876062,192.57,192.55,26.0]
[1753106967375,0.06,192.59,192.55,26.0]
[1753106967376,0.06,192.59,192.56,26.0]
[1753106967537,0.06,192.59,192.57,6.7876062]
[1753106967742,0.06,192.59,192.57,0.66]
[1753106967974,0.06,192.59,192.56,32.7876062]
[1753106967975,0.06,192.59,192.58,0.66]
[1753106968159,16.84468397,192.59,192.58,0.66]
[1753106968469,54.18468397,192.59,192.58,0.66]
[1753106969674,66.16466775,192.59,192.55,0.66]
[1753106969882,16.78468397,192.55,192.53,26.66]
[1753106970168,44.1076062,192.54,192.51,0.2]
[1753106970370,23.57229017,192.53,192.51,0.86]
[1753106970557,37.32,192.52,192.51,0.86]
[1753106970757,60.89229017,192.52,192.51,0.2]
[1753106971273,66.0865557,192.52,192.51,0.2]
[1753106972366,66.4265557,192.52,192.51,0.2]
[1753106974888,66.0865557,192.52,192.51,0.2]
[1753106975469,66.4265557,192.52,192.51,0.2]
[1753106977698,66.0865557,192.52,192.51,0.2]
[1753106980489,66.4265557,192.52,192.51,0.2]
[1753106981577,73.2141619,192.52,192.51,0.2]
[1753106981778,73.2141619,192.52,192.51,1e-08]
[1753106982892,73.2141619,192.52,192.5,1e-08]
[1753106983092,182.09559637,192.51,192.49,1e-08]
[1753106983397,16.78468397,192.49,192.48,0.2]
[1753106983599,23.57229017,192.49,192.48,1e-08]
[1753106983792,23.91229017,192.49,192.39,0.7]
[1753106984095,16.78468397,192.43,192.34,1.6191]
[1753106984288,187.46,192.48,192.37,0.7]
[1753106984289,16.78468397,192.38,192.37,0.7]
[1753106984597,60.89229017,192.38,192.37,0.7]
[1753106985109,16.78468397,192.37,192.34,0.7]
[1753106985400,28.77115206,192.35,192.33,0.2]
[1753106985572,60.89229017,192.34,192.33,0.2]
[1753106986202,54.10468397,192.34,192.33,0.2]
[1753106986405,37.32,192.34,192.33,6.09939686]
[1753106986584,37.32,192.35,192.33,32.09935522]
[1753106986786,37.32,192.35,192.34,0.7]
[1753106987172,54.10468397,192.35,192.34,0.7]
[1753106987489,60.89229017,192.35,192.34,0.7]
[1753106988302,54.10468397,192.35,192.34,0.7]
[1753106988981,60.89229017,192.35,192.34,0.7]
[1753106989904,60.89229017,192.35,192.33,26.2]
[1753106990091,6.7876062,192.34,192.33,26.9]
[1753106990402,16.78468397,192.34,192.33,26.9]
[1753106990798,6.7876062,192.35,192.33,0.9]
[1753106990995,54.10468397,192.35,192.34,0.7]
[1753106991192,54.10468397,192.35,192.34,26.7]
[1753106991495,60.89229017,192.35,192.34,26.7]
[1753106991801,60.89229017,192.35,192.34,0.7]
[1753106991985,66.09114642,192.35,192.33,26.2]
[1753106992181,23.57229017,192.34,192.33,0.2]
[1753106993490,16.78468397,192.34,192.33,0.9]
[1753106993688,60.89229017,192.34,192.33,0.9]
[1753106993989,66.09141671,192.34,192.33,0.2]
[1753106994494,59.30381051,192.34,192.33,0.2]
[1753106994999,66.09141671,192.34,192.33,0.2]
[1753106996692,23.57229017,192.34,192.33,0.9]
[1753106996999,54.10468397,192.34,192.33,0.9]
[1753106998185,60.89229017,192.34,192.33,0.9]
[1753106998386,23.57229017,192.34,192.33,0.2]
[1753106998589,60.89229017,192.34,192.33,0.2]
[1753106999309,66.09141671,192.34,192.33,0.2]
[1753107000512,60.89229017,192.34,192.33,0.2]
[1753107000696,54.10468397,192.34,192.33,0.9]
[1753107001307,5.1966949,192.43,192.36,26.0]
[1753107001493,6.7876062,192.37,192.36,0.67]
[1753107001814,6.7876062,192.37,192.34,0.67]
[1753107001815,21.9832897,192.36,192.34,0.67]
[1753107002014,54.10468397,192.35,192.34,0.67]
[1753107002310,60.89229017,192.35,192.34,0.67]
[1753107002613,54.10468397,192.35,192.34,26.67]
[1753107003691,54.10468397,192.35,192.34,0.67]
[1753107004094,37.32,192.35,192.34,0.67]
[1753107004315,37.32,192.36,192.34,5.86906037]
[1753107004511,54.10468397,192.36,192.35,0.67]
[1753107004697,37.32,192.36,192.35,26.67]
[1753107005106,37.32,192.36,192.35,0.67]
[1753107005494,23.57229017,192.39,192.35,0.67]
[1753107005817,54.10468397,192.38,192.37,26.0]
[1753107006011,37.32,192.38,192.37,26.67]
[1753107006519,37.32,192.38,192.37,31.86831574]
[1753107007100,54.10468397,192.39,192.37,31.86831574]
[1753107007410,54.10468397,192.39,192.38,0.67]
[1753107008817,16.78468397,192.39,192.38,0.67]
[1753107009118,54.08468397,192.39,192.38,0.67]
[1753107010217,66.07006552,192.39,192.33,0.2]
[1753107010420,16.78468397,192.36,192.34,26.0]
[1753107010619,16.78468397,192.34,192.33,0.2]
[1753107011210,16.78468397,192.34,192.33,26.2]
[1753107011418,16.78468397,192.34,192.33,26.87]
[1753107012722,16.78468397,192.34,192.33,26.2]
[1753107013718,16.78468397,192.34,192.33,26.87]
[1753107014411,118.57141671,192.34,192.33,26.2]
[1753107014621,118.57141671,192.34,192.33,0.2]
[1753107018528,143.88468397,192.34,192.33,0.87]
[1753107020324,106.58468397,192.34,192.33,0.87]
[1753107020524,143.88468397,192.34,192.33,0.87]
[1753107021820,143.88468397,192.34,192.33,0.2]
[1753107021821,149.08381051,192.34,192.33,0.2]
[1753107022130,143.88468397,192.34,192.33,0.2]
[1753107022332,155.87141671,192.34,192.33,0.2]
[1753107024727,66.07141671,192.34,192.33,0.2]
[1753107026113,28.77141671,192.34,192.33,0.2]
[1753107026314,66.05141671,192.34,192.33,0.2]
[1753107026916,6.7876062,192.36,192.33,0.87]
[1753107027136,16.78468397,192.34,192.33,0.2]
[1753107027314,37.28,192.35,192.33,12.18700306]
[1753107027514,37.28,192.35,192.34,6.7876062]
[1753107027834,16.78468397,192.39,192.34,7.4576062]
[1753107028022,16.78468397,192.37,192.35,7.4576062]
[1753107028224,54.06468397,192.36,192.35,26.0]
[1753107028626,37.28,192.36,192.35,26.0]
[1753107028829,37.28,192.36,192.35,26.67]
[1753107030439,16.78468397,192.38,192.35,38.65643659]
[1753107030641,89.8,192.42,192.37,6.7876062]
[1753107030940,54.06468397,192.41,192.4,26.0]
[1753107031131,54.06468397,192.41,192.4,26.67]
[1753107031643,54.06468397,192.41,192.4,26.72]
[1753107031819,60.85229017,192.41,192.4,26.0]
[1753107032013,60.85229017,192.41,192.36,26.0]
[1753107032014,61.19229017,192.41,192.36,26.0]
[1753107032218,6.7876062,192.38,192.36,26.0]
[1753107032461,54.06468397,192.37,192.36,26.0]
[1753107032737,54.06468397,192.37,192.36,0.72]
[1753107034056,37.28,192.37,192.36,5.91858598]
[1753107034259,89.8,192.42,192.39,26.0]
[1753107034548,127.08,192.42,192.41,6.7876062]
[1753107034838,37.28,192.42,192.41,7.5076062]
[1753107035216,37.28,192.42,192.41,0.72]
[1753107035835,37.28,192.42,192.41,5.91723507]